[Event "Titled Tuesday Blitz March 22 Early 2022"]
[White "Khamzin, Olzhas"]
[Black "Baker, Chris W"]
[WhiteFideId "13701690"]
[BlackFideId "401676"]
[WhiteElo "2194"]
[BlackElo "2278"]
[Result "0-1"]
[Round "01"]
[TimeControl "180+1"]
[Date "2022.03.22"]
[WhiteClock "0:01:12"]
[BlackClock "0:00:46"]

1. d4 {[%clk 0:02:57]}  e6 {[%clk 0:02:58]} 2. Nc3 {[%clk 0:02:58]}  f5 {[%clk 0:02:57]} 3. g3 {[%clk 0:02:51]}  Nf6 {[%clk 0:02:56]} 4. Bg2 {[%clk 0:02:51]}  d5 {[%clk 0:02:49]} 5. Bg5 {[%clk 0:02:50]}  Nbd7 {[%clk 0:02:46]} 6. h4 {[%clk 0:02:49]}  h6 {[%clk 0:02:42]} 7. Bf4 {[%clk 0:02:47]}  c6 {[%clk 0:02:40]} 8. e3 {[%clk 0:02:46]}  Be7 {[%clk 0:02:31]} 9. h5 {[%clk 0:02:46]}  O-O {[%clk 0:02:30]} 10. Nf3 {[%clk 0:02:46]}  Ne4 {[%clk 0:02:29]} 11. Nxe4 {[%clk 0:02:44]}  fxe4 {[%clk 0:02:24]} 12. Ne5 {[%clk 0:02:45]}  Nxe5 {[%clk 0:02:19]} 13. Bxe5 {[%clk 0:02:45]}  Bf6 {[%clk 0:02:16]} 14. Bf4 {[%clk 0:02:44]}  Qe7 {[%clk 0:02:13]} 15. Qd2 {[%clk 0:02:29]}  e5 {[%clk 0:02:11]} 16. dxe5 {[%clk 0:02:30]}  Bxe5 {[%clk 0:02:10]} 17. O-O-O {[%clk 0:02:30]}  Bf6 {[%clk 0:02:04]} 18. Kb1 {[%clk 0:02:28]}  Bg4 {[%clk 0:02:02]} 19. Rc1 {[%clk 0:02:25]}  b5 {[%clk 0:01:59]} 20. Qa5 {[%clk 0:02:21]}  Qd8 {[%clk 0:01:36]} 21. Qa6 {[%clk 0:02:15]}  Qb6 {[%clk 0:01:32]} 22. Qxb6 {[%clk 0:02:15]}  axb6 {[%clk 0:01:32]} 23. Bh3 {[%clk 0:01:54]}  Bf3 {[%clk 0:01:27]} 24. Rh2 {[%clk 0:01:47]}  Ra4 {[%clk 0:01:22]} 25. a3 {[%clk 0:01:42]}  Rfa8 {[%clk 0:01:21]} 26. c3 {[%clk 0:01:42]}  Kf7 {[%clk 0:01:18]} 27. Bf5 {[%clk 0:01:41]}  c5 {[%clk 0:01:07]} 28. Bg6+ {[%clk 0:01:33]}  Ke6 {[%clk 0:01:05]} 29. Rc2 {[%clk 0:01:33]}  Bd1 {[%clk 0:01:02]} 30. Rd2 {[%clk 0:01:33]}  Bb3 {[%clk 0:01:00]} 31. g4 {[%clk 0:01:30]}  b4 {[%clk 0:00:59]} 32. Bf5+ {[%clk 0:01:30]}  Ke7 {[%clk 0:00:55]} 33. cxb4 {[%clk 0:01:29]}  cxb4 {[%clk 0:00:54]} 34. Rh1 {[%clk 0:01:26]}  bxa3 {[%clk 0:00:54]} 35. Rc1 {[%clk 0:01:27]}  axb2 {[%clk 0:00:50]} 36. Rc7+ {[%clk 0:01:27]}  Kf8 {[%clk 0:00:49]} 37. Bd6+ {[%clk 0:01:18]}  Kg8 {[%clk 0:00:47]} 38. Be6+ {[%clk 0:01:17]}  Kh8 {[%clk 0:00:47]} 39. Rxb2 {[%clk 0:01:12]}  Ra1# {[%clk 0:00:46]} 0-1


[Site "https://www.chess.com"]

[Event "Titled Tuesday Blitz March 22 Early 2022"]
[White "Kobalia, Mikhail"]
[Black "Aydin, Gulenay"]
[WhiteFideId "4119150"]
[BlackFideId "34557431"]
[WhiteElo "2667"]
[BlackElo "1429"]
[Result "1-0"]
[Round "01"]
[TimeControl "180+1"]
[Date "2022.03.22"]
[WhiteClock "0:00:11"]
[BlackClock "0:00:04"]

1. e4 {[%clk 0:02:59]}  c5 {[%clk 0:02:59]} 2. Nf3 {[%clk 0:02:59]}  d6 {[%clk 0:03:00]} 3. d4 {[%clk 0:02:59]}  cxd4 {[%clk 0:03:00]} 4. Nxd4 {[%clk 0:02:59]}  Nf6 {[%clk 0:03:01]} 5. Nc3 {[%clk 0:03:00]}  g6 {[%clk 0:03:01]} 6. Be3 {[%clk 0:02:59]}  Bg7 {[%clk 0:03:02]} 7. f3 {[%clk 0:03:00]}  a6 {[%clk 0:03:02]} 8. Qd2 {[%clk 0:03:00]}  h5 {[%clk 0:03:03]} 9. O-O-O {[%clk 0:03:00]}  b5 {[%clk 0:03:03]} 10. Kb1 {[%clk 0:02:44]}  Bb7 {[%clk 0:03:03]} 11. Bg5 {[%clk 0:02:39]}  Nbd7 {[%clk 0:03:02]} 12. h4 {[%clk 0:02:37]}  Rc8 {[%clk 0:03:02]} 13. Be2 {[%clk 0:02:34]}  Ne5 {[%clk 0:03:01]} 14. Rhg1 {[%clk 0:02:07]}  Nc4 {[%clk 0:02:25]} 15. Bxc4 {[%clk 0:02:06]}  Rxc4 {[%clk 0:02:26]} 16. Qe3 {[%clk 0:02:00]}  Nd7 {[%clk 0:02:23]} 17. Nd5 {[%clk 0:01:58]}  Bxd5 {[%clk 0:02:14]} 18. exd5 {[%clk 0:01:59]}  Ne5 {[%clk 0:02:13]} 19. b3 {[%clk 0:01:50]}  Rc7 {[%clk 0:02:12]} 20. f4 {[%clk 0:01:48]}  Ng4 {[%clk 0:02:05]} 21. Qd2 {[%clk 0:01:06]}  Qc8 {[%clk 0:01:11]} 22. f5 {[%clk 0:00:57]}  gxf5 {[%clk 0:00:56]} 23. Nc6 {[%clk 0:00:56]}  Rxc6 {[%clk 0:00:45]} 24. dxc6 {[%clk 0:00:55]}  Qxc6 {[%clk 0:00:46]} 25. Rge1 {[%clk 0:00:53]}  Be5 {[%clk 0:00:45]} 26. Bf4 {[%clk 0:00:50]}  Kf8 {[%clk 0:00:36]} 27. Bxe5 {[%clk 0:00:50]}  Nxe5 {[%clk 0:00:36]} 28. Qg5 {[%clk 0:00:45]}  Rg8 {[%clk 0:00:32]} 29. Qxf5 {[%clk 0:00:42]}  Rxg2 {[%clk 0:00:31]} 30. Rg1 {[%clk 0:00:35]}  Ng4 {[%clk 0:00:20]} 31. Rxg2 {[%clk 0:00:31]}  Qxg2 {[%clk 0:00:21]} 32. Qxh5 {[%clk 0:00:29]}  Ke8 {[%clk 0:00:21]} 33. Qf5 {[%clk 0:00:25]}  Kf8 {[%clk 0:00:17]} 34. h5 {[%clk 0:00:23]}  Ne3 {[%clk 0:00:16]} 35. Qc8+ {[%clk 0:00:22]}  Kg7 {[%clk 0:00:16]} 36. Re1 {[%clk 0:00:21]}  Nd5 {[%clk 0:00:12]} 37. h6+ {[%clk 0:00:17]}  Kh7 {[%clk 0:00:11]} 38. Qf8 {[%clk 0:00:17]}  Qg6 {[%clk 0:00:07]} 39. Rf1 {[%clk 0:00:12]}  f6 {[%clk 0:00:05]} 40. Kb2 {[%clk 0:00:12]}  Ne3 {[%clk 0:00:05]} 41. Qxe7+ {[%clk 0:00:11]}  Kxh6 {[%clk 0:00:04]} 42. Qxe3+ {[%clk 0:00:11]}  Kh7 {[%clk 0:00:04]} 43. Rh1+ {[%clk 0:00:11]}  Kg8 {[%clk 0:00:04]} 44. Rg1 {[%clk 0:00:11]} 1-0


[Site "https://www.chess.com"]

[Event "Titled Tuesday Blitz March 22 Early 2022"]
[White "Koellner, Ruben Gideon"]
[Black "Petrosyan, Manuel"]
[WhiteFideId "12993093"]
[BlackFideId "13300857"]
[WhiteElo "2472"]
[BlackElo "2592"]
[Result "1/2-1/2"]
[Round "01"]
[TimeControl "180+1"]
[Date "2022.03.22"]
[WhiteClock "0:01:05"]
[BlackClock "0:00:11"]

1. d4 {[%clk 0:03:00]}  Nf6 {[%clk 0:02:58]} 2. Bg5 {[%clk 0:03:01]}  d5 {[%clk 0:02:58]} 3. e3 {[%clk 0:03:01]}  e6 {[%clk 0:02:57]} 4. Nd2 {[%clk 0:03:00]}  c5 {[%clk 0:02:58]} 5. c3 {[%clk 0:03:00]}  Nc6 {[%clk 0:02:58]} 6. Ngf3 {[%clk 0:02:58]}  Bd6 {[%clk 0:02:58]} 7. Bd3 {[%clk 0:02:58]}  h6 {[%clk 0:02:57]} 8. Bh4 {[%clk 0:02:58]}  O-O {[%clk 0:02:40]} 9. O-O {[%clk 0:02:57]}  b6 {[%clk 0:02:10]} 10. Qe2 {[%clk 0:02:52]}  Be7 {[%clk 0:02:05]} 11. Bg3 {[%clk 0:02:42]}  Bb7 {[%clk 0:02:04]} 12. Rad1 {[%clk 0:02:37]}  Nh5 {[%clk 0:01:50]} 13. Be5 {[%clk 0:02:35]}  Nxe5 {[%clk 0:01:43]} 14. Nxe5 {[%clk 0:02:35]}  Nf6 {[%clk 0:01:43]} 15. f4 {[%clk 0:02:33]}  Qc7 {[%clk 0:01:38]} 16. Qf3 {[%clk 0:02:32]}  a5 {[%clk 0:01:32]} 17. g4 {[%clk 0:02:21]}  Nd7 {[%clk 0:01:27]} 18. g5 {[%clk 0:02:02]}  Nxe5 {[%clk 0:01:20]} 19. dxe5 {[%clk 0:02:00]}  g6 {[%clk 0:01:15]} 20. gxh6 {[%clk 0:01:54]}  a4 {[%clk 0:01:10]} 21. a3 {[%clk 0:01:53]}  Kh7 {[%clk 0:00:44]} 22. Qh3 {[%clk 0:01:48]}  Rad8 {[%clk 0:00:38]} 23. Nf3 {[%clk 0:01:47]}  d4 {[%clk 0:00:37]} 24. exd4 {[%clk 0:01:43]}  Bxf3 {[%clk 0:00:36]} 25. Qxf3 {[%clk 0:01:40]}  cxd4 {[%clk 0:00:36]} 26. c4 {[%clk 0:01:40]}  Kxh6 {[%clk 0:00:35]} 27. h4 {[%clk 0:01:37]}  Rh8 {[%clk 0:00:30]} 28. Kg2 {[%clk 0:01:35]}  Kg7 {[%clk 0:00:30]} 29. Rh1 {[%clk 0:01:34]}  Rh5 {[%clk 0:00:29]} 30. Rh3 {[%clk 0:01:30]}  Rdh8 {[%clk 0:00:30]} 31. Rdh1 {[%clk 0:01:30]}  Rxh4 {[%clk 0:00:24]} 32. Rxh4 {[%clk 0:01:30]}  Rxh4 {[%clk 0:00:25]} 33. Rxh4 {[%clk 0:01:30]}  Bxh4 {[%clk 0:00:25]} 34. Qa8 {[%clk 0:01:30]}  Qd7 {[%clk 0:00:20]} 35. Kf3 {[%clk 0:01:28]}  Be1 {[%clk 0:00:17]} 36. Ke2 {[%clk 0:01:24]}  Ba5 {[%clk 0:00:15]} 37. Qh1 {[%clk 0:01:21]}  Qe7 {[%clk 0:00:13]} 38. Be4 {[%clk 0:01:16]}  Qc5 {[%clk 0:00:12]} 39. Bd3 {[%clk 0:01:14]}  Qc7 {[%clk 0:00:13]} 40. Qh4 {[%clk 0:01:13]}  Qb7 {[%clk 0:00:10]} 41. Qf6+ {[%clk 0:01:12]}  Kg8 {[%clk 0:00:10]} 42. Qd8+ {[%clk 0:01:11]}  Kh7 {[%clk 0:00:11]} 43. Qh4+ {[%clk 0:01:09]}  Kg7 {[%clk 0:00:11]} 44. Qf6+ {[%clk 0:01:08]}  Kg8 {[%clk 0:00:12]} 45. Qd8+ {[%clk 0:01:00]}  Kh7 {[%clk 0:00:11]} 46. Qxd4 {[%clk 0:01:00]}  Qg2+ {[%clk 0:00:09]} 47. Qf2 {[%clk 0:01:00]}  Qxf2+ {[%clk 0:00:08]} 48. Kxf2 {[%clk 0:01:01]}  Bd2 {[%clk 0:00:08]} 49. Kf3 {[%clk 0:01:00]}  Bc1 {[%clk 0:00:09]} 50. Bc2 {[%clk 0:00:59]}  Bxb2 {[%clk 0:00:09]} 51. Bxa4 {[%clk 0:01:00]}  Bxa3 {[%clk 0:00:10]} 52. Ke4 {[%clk 0:01:00]}  Kg7 {[%clk 0:00:10]} 53. Be8 {[%clk 0:01:00]}  Kf8 {[%clk 0:00:10]} 54. Bb5 {[%clk 0:01:00]}  Bc5 {[%clk 0:00:10]} 55. Bc6 {[%clk 0:01:00]}  Ke7 {[%clk 0:00:11]} 56. Bb5 {[%clk 0:01:01]}  Ba3 {[%clk 0:00:11]} 57. Bc6 {[%clk 0:01:01]}  Kf8 {[%clk 0:00:11]} 58. Bb5 {[%clk 0:01:01]}  Kg7 {[%clk 0:00:12]} 59. Bc6 {[%clk 0:01:02]}  Bc5 {[%clk 0:00:12]} 60. Be8 {[%clk 0:01:02]}  Be7 {[%clk 0:00:11]} 61. Bb5 {[%clk 0:01:02]}  Ba3 {[%clk 0:00:11]} 62. Be8 {[%clk 0:01:03]}  Bc1 {[%clk 0:00:11]} 63. Bb5 {[%clk 0:01:03]}  g5 {[%clk 0:00:12]} 64. fxg5 {[%clk 0:01:03]}  Bxg5 {[%clk 0:00:13]} 65. Be8 {[%clk 0:01:03]}  Bc1 {[%clk 0:00:13]} 66. Bb5 {[%clk 0:01:03]}  Bb2 {[%clk 0:00:13]} 67. Bc6 {[%clk 0:01:03]}  Kf8 {[%clk 0:00:13]} 68. Bb5 {[%clk 0:01:04]}  Ke7 {[%clk 0:00:13]} 69. Bc6 {[%clk 0:01:04]}  Kd8 {[%clk 0:00:12]} 70. Bb5 {[%clk 0:01:04]}  Ba3 {[%clk 0:00:12]} 71. Bc6 {[%clk 0:01:04]}  Bf8 {[%clk 0:00:11]} 72. Bb5 {[%clk 0:01:05]}  Bg7 {[%clk 0:00:11]} 73. Bc6 {[%clk 0:01:05]}  Ke7 {[%clk 0:00:11]} 74. Bb5 {[%clk 0:01:05]} 1/2-1/2


[Site "https://www.chess.com"]

[Event "Titled Tuesday Blitz March 22 Early 2022"]
[White "Kovanova, Baira"]
[Black "Tari, Aryan"]
[WhiteFideId "4164083"]
[BlackFideId "1510045"]
[WhiteElo "2190"]
[BlackElo "2567"]
[Result "0-1"]
[Round "01"]
[TimeControl "180+1"]
[Date "2022.03.22"]
[WhiteClock "0:00:30"]
[BlackClock "0:01:53"]

1. e4 {[%clk 0:02:59]}  c5 {[%clk 0:02:53]} 2. Nf3 {[%clk 0:02:57]}  e6 {[%clk 0:02:51]} 3. d4 {[%clk 0:02:55]}  cxd4 {[%clk 0:02:51]} 4. Nxd4 {[%clk 0:02:55]}  Nc6 {[%clk 0:02:49]} 5. Nc3 {[%clk 0:02:53]}  Qc7 {[%clk 0:02:49]} 6. a3 {[%clk 0:02:50]}  a6 {[%clk 0:02:46]} 7. Nxc6 {[%clk 0:02:43]}  bxc6 {[%clk 0:02:42]} 8. Qf3 {[%clk 0:02:39]}  d5 {[%clk 0:02:40]} 9. Bd3 {[%clk 0:02:31]}  Nf6 {[%clk 0:02:37]} 10. Qg3 {[%clk 0:02:04]}  Qxg3 {[%clk 0:02:29]} 11. hxg3 {[%clk 0:02:04]}  Be7 {[%clk 0:02:30]} 12. Bf4 {[%clk 0:01:59]}  Nd7 {[%clk 0:02:27]} 13. exd5 {[%clk 0:01:40]}  cxd5 {[%clk 0:02:25]} 14. O-O {[%clk 0:01:33]}  O-O {[%clk 0:02:24]} 15. Rfe1 {[%clk 0:01:31]}  Bf6 {[%clk 0:02:20]} 16. Bd6 {[%clk 0:01:28]}  Rd8 {[%clk 0:02:19]} 17. Na4 {[%clk 0:01:24]}  Bb7 {[%clk 0:02:17]} 18. Rab1 {[%clk 0:01:08]}  g6 {[%clk 0:02:03]} 19. c4 {[%clk 0:00:43]}  Bc6 {[%clk 0:01:54]} 20. Nc5 {[%clk 0:00:42]}  dxc4 {[%clk 0:01:53]} 21. Bxc4 {[%clk 0:00:42]}  Nb6 {[%clk 0:01:54]} 22. Ne4 {[%clk 0:00:30]}  Bxe4 {[%clk 0:01:53]} 0-1


[Site "https://www.chess.com"]

[Event "Titled Tuesday Blitz March 22 Early 2022"]
[White "Kozak, Adam"]
[Black "Ronka, Erik"]
[WhiteFideId "753246"]
[BlackFideId "505080"]
[WhiteElo "2459"]
[BlackElo "2264"]
[Result "0-1"]
[Round "01"]
[TimeControl "180+1"]
[Date "2022.03.22"]
[WhiteClock "0:00:36"]
[BlackClock "0:00:12"]

1. Nf3 {[%clk 0:03:00]}  d5 {[%clk 0:02:59]} 2. g3 {[%clk 0:02:57]}  Nf6 {[%clk 0:02:59]} 3. Bg2 {[%clk 0:02:54]}  Bg4 {[%clk 0:02:59]} 4. O-O {[%clk 0:02:53]}  Nbd7 {[%clk 0:03:00]} 5. c4 {[%clk 0:02:52]}  c6 {[%clk 0:02:59]} 6. d4 {[%clk 0:02:52]}  e6 {[%clk 0:02:58]} 7. h3 {[%clk 0:02:52]}  Bh5 {[%clk 0:02:58]} 8. cxd5 {[%clk 0:02:52]}  cxd5 {[%clk 0:02:53]} 9. Nc3 {[%clk 0:02:51]}  Be7 {[%clk 0:02:52]} 10. Ne5 {[%clk 0:02:50]}  O-O {[%clk 0:02:43]} 11. f4 {[%clk 0:02:44]}  Bg6 {[%clk 0:02:33]} 12. g4 {[%clk 0:02:43]}  Ne4 {[%clk 0:02:07]} 13. Nxg6 {[%clk 0:02:39]}  hxg6 {[%clk 0:02:05]} 14. Nxe4 {[%clk 0:02:39]}  dxe4 {[%clk 0:02:06]} 15. Bxe4 {[%clk 0:02:39]}  Rb8 {[%clk 0:02:03]} 16. e3 {[%clk 0:02:38]}  g5 {[%clk 0:01:58]} 17. f5 {[%clk 0:02:37]}  Nf6 {[%clk 0:01:57]} 18. Bg2 {[%clk 0:02:37]}  Qd6 {[%clk 0:01:54]} 19. e4 {[%clk 0:02:36]}  e5 {[%clk 0:01:53]} 20. Bxg5 {[%clk 0:02:33]}  exd4 {[%clk 0:01:49]} 21. Bf4 {[%clk 0:02:32]}  Qb6 {[%clk 0:01:48]} 22. Bxb8 {[%clk 0:02:31]}  Rxb8 {[%clk 0:01:48]} 23. e5 {[%clk 0:02:31]}  Ne8 {[%clk 0:01:47]} 24. Kh1 {[%clk 0:02:30]}  Rd8 {[%clk 0:01:45]} 25. Qd3 {[%clk 0:02:25]}  Qc5 {[%clk 0:01:44]} 26. Rae1 {[%clk 0:02:24]}  b5 {[%clk 0:01:43]} 27. f6 {[%clk 0:02:24]}  gxf6 {[%clk 0:01:40]} 28. exf6 {[%clk 0:02:23]}  Nxf6 {[%clk 0:01:14]} 29. Rf5 {[%clk 0:02:22]}  Qc7 {[%clk 0:01:10]} 30. Ref1 {[%clk 0:02:17]}  Rd6 {[%clk 0:01:09]} 31. g5 {[%clk 0:02:14]}  Nh7 {[%clk 0:01:08]} 32. h4 {[%clk 0:02:08]}  f6 {[%clk 0:00:58]} 33. Qg3 {[%clk 0:01:57]}  fxg5 {[%clk 0:00:55]} 34. hxg5 {[%clk 0:01:52]}  Rh6+ {[%clk 0:00:53]} 35. gxh6+ {[%clk 0:01:38]}  Qxg3 {[%clk 0:00:53]} 36. R5f3 {[%clk 0:01:24]}  Qh4+ {[%clk 0:00:47]} 37. Rh3 {[%clk 0:01:23]}  Qg5 {[%clk 0:00:33]} 38. Be4 {[%clk 0:01:22]}  Kh8 {[%clk 0:00:32]} 39. Rf7 {[%clk 0:00:53]}  Qc1+ {[%clk 0:00:27]} 40. Kg2 {[%clk 0:00:53]}  Qd2+ {[%clk 0:00:24]} 41. Rf2 {[%clk 0:00:52]}  Qg5+ {[%clk 0:00:22]} 42. Kh1 {[%clk 0:00:52]}  Nf6 {[%clk 0:00:21]} 43. Bd3 {[%clk 0:00:49]}  Ng4 {[%clk 0:00:19]} 44. Rf7 {[%clk 0:00:41]}  Qc1+ {[%clk 0:00:19]} 45. Rf1 {[%clk 0:00:41]}  Qd2 {[%clk 0:00:15]} 46. Rhf3 {[%clk 0:00:36]}  Qh2# {[%clk 0:00:12]} 0-1


[Site "https://www.chess.com"]

[Event "Titled Tuesday Blitz March 22 Early 2022"]
[White "Krzywda, Andrzej"]
[Black "Kosteniuk, Alexandra"]
[WhiteFideId "1114565"]
[BlackFideId "4128125"]
[WhiteElo "2098"]
[BlackElo "2469"]
[Result "0-1"]
[Round "01"]
[TimeControl "180+1"]
[Date "2022.03.22"]
[WhiteClock "0:00:07"]
[BlackClock "0:00:19"]

1. Nf3 {[%clk 0:02:57]}  Nf6 {[%clk 0:02:58]} 2. d4 {[%clk 0:02:57]}  b6 {[%clk 0:02:57]} 3. g3 {[%clk 0:02:57]}  Bb7 {[%clk 0:02:57]} 4. Bg2 {[%clk 0:02:58]}  e6 {[%clk 0:02:57]} 5. O-O {[%clk 0:02:58]}  Be7 {[%clk 0:02:58]} 6. c4 {[%clk 0:02:58]}  O-O {[%clk 0:02:56]} 7. Nc3 {[%clk 0:02:58]}  Ne4 {[%clk 0:02:55]} 8. Qc2 {[%clk 0:02:59]}  Nxc3 {[%clk 0:02:49]} 9. Qxc3 {[%clk 0:03:00]}  Be4 {[%clk 0:02:48]} 10. b3 {[%clk 0:02:50]}  d6 {[%clk 0:02:48]} 11. Bb2 {[%clk 0:02:49]}  Nd7 {[%clk 0:02:48]} 12. Rfd1 {[%clk 0:02:47]}  f5 {[%clk 0:02:46]} 13. Rac1 {[%clk 0:02:38]}  a5 {[%clk 0:02:44]} 14. Ne1 {[%clk 0:02:35]}  Bg5 {[%clk 0:02:37]} 15. e3 {[%clk 0:02:22]}  Rf7 {[%clk 0:02:16]} 16. a3 {[%clk 0:02:20]}  Bf6 {[%clk 0:02:01]} 17. Qd2 {[%clk 0:02:16]}  Bxg2 {[%clk 0:01:52]} 18. Kxg2 {[%clk 0:02:14]}  g5 {[%clk 0:01:53]} 19. Nd3 {[%clk 0:02:08]}  Qf8 {[%clk 0:01:49]} 20. Qe2 {[%clk 0:02:04]}  Re8 {[%clk 0:01:45]} 21. Qf3 {[%clk 0:01:59]}  Bg7 {[%clk 0:01:38]} 22. Qc6 {[%clk 0:01:56]}  Nb8 {[%clk 0:01:24]} 23. Qb7 {[%clk 0:01:54]}  h5 {[%clk 0:01:16]} 24. f4 {[%clk 0:01:51]}  h4 {[%clk 0:01:13]} 25. fxg5 {[%clk 0:01:46]}  hxg3 {[%clk 0:01:12]} 26. hxg3 {[%clk 0:01:46]}  Qe7 {[%clk 0:01:09]} 27. Nf4 {[%clk 0:01:40]}  Qxg5 {[%clk 0:01:06]} 28. Rh1 {[%clk 0:01:34]}  e5 {[%clk 0:01:04]} 29. Rh5 {[%clk 0:01:15]}  Qg4 {[%clk 0:00:57]} 30. Rh4 {[%clk 0:01:11]}  Qg5 {[%clk 0:00:57]} 31. Rh5 {[%clk 0:01:11]}  Qd8 {[%clk 0:00:51]} 32. Nd5 {[%clk 0:00:59]}  c6 {[%clk 0:00:51]} 33. Qa8 {[%clk 0:00:33]}  cxd5 {[%clk 0:00:51]} 34. Qxd5 {[%clk 0:00:34]}  Qf6 {[%clk 0:00:51]} 35. Rch1 {[%clk 0:00:32]}  Qe6 {[%clk 0:00:43]} 36. dxe5 {[%clk 0:00:22]}  Qxd5+ {[%clk 0:00:42]} 37. cxd5 {[%clk 0:00:22]}  dxe5 {[%clk 0:00:42]} 38. Rf1 {[%clk 0:00:17]}  Ref8 {[%clk 0:00:37]} 39. Rg5 {[%clk 0:00:16]}  Nd7 {[%clk 0:00:37]} 40. Rg6 {[%clk 0:00:15]}  Rf6 {[%clk 0:00:36]} 41. Rg5 {[%clk 0:00:14]}  Rd6 {[%clk 0:00:35]} 42. Rd1 {[%clk 0:00:10]}  Rf7 {[%clk 0:00:30]} 43. b4 {[%clk 0:00:07]}  axb4 {[%clk 0:00:29]} 44. axb4 {[%clk 0:00:08]}  b5 {[%clk 0:00:30]} 45. Rc1 {[%clk 0:00:08]}  Rxd5 {[%clk 0:00:28]} 46. Kh3 {[%clk 0:00:09]}  Rd6 {[%clk 0:00:24]} 47. Rc7 {[%clk 0:00:08]}  Kh7 {[%clk 0:00:24]} 48. Rh5+ {[%clk 0:00:06]}  Rh6 {[%clk 0:00:23]} 49. Rxh6+ {[%clk 0:00:06]}  Kxh6 {[%clk 0:00:24]} 50. Kh4 {[%clk 0:00:05]}  Bf6+ {[%clk 0:00:24]} 51. Kh3 {[%clk 0:00:06]}  Kg6 {[%clk 0:00:24]} 52. g4 {[%clk 0:00:06]}  e4 {[%clk 0:00:22]} 53. Bxf6 {[%clk 0:00:05]}  Kxf6 {[%clk 0:00:20]} 54. gxf5 {[%clk 0:00:05]}  Kxf5 {[%clk 0:00:20]} 55. Kg3 {[%clk 0:00:06]}  Rg7+ {[%clk 0:00:20]} 56. Kf2 {[%clk 0:00:06]}  Ke6 {[%clk 0:00:20]} 57. Ke2 {[%clk 0:00:06]}  Rg2+ {[%clk 0:00:20]} 58. Kf1 {[%clk 0:00:07]}  Rb2 {[%clk 0:00:20]} 59. Rc6+ {[%clk 0:00:06]}  Kd5 {[%clk 0:00:20]} 60. Rc7 {[%clk 0:00:07]}  Kd6 {[%clk 0:00:21]} 61. Rc8 {[%clk 0:00:07]}  Rxb4 {[%clk 0:00:20]} 62. Ke2 {[%clk 0:00:08]}  Rc4 {[%clk 0:00:20]} 63. Rb8 {[%clk 0:00:07]}  Nxb8 {[%clk 0:00:19]} 0-1


[Site "https://www.chess.com"]

[Event "Titled Tuesday Blitz March 22 Early 2022"]
[White "Lazavik, Denis"]
[Black "Sztokbant, Bernardo Vainzoff"]
[WhiteFideId "13515110"]
[BlackFideId "2115956"]
[WhiteElo "2437"]
[BlackElo "2237"]
[Result "0-1"]
[Round "01"]
[TimeControl "180+1"]
[Date "2022.03.22"]
[WhiteClock "0:00:12"]
[BlackClock "0:00:08"]

1. d4 {[%clk 0:03:00]}  d5 {[%clk 0:02:58]} 2. c4 {[%clk 0:03:01]}  dxc4 {[%clk 0:02:59]} 3. Nf3 {[%clk 0:03:01]}  Nf6 {[%clk 0:02:59]} 4. e3 {[%clk 0:03:02]}  e6 {[%clk 0:02:59]} 5. Bxc4 {[%clk 0:03:02]}  c5 {[%clk 0:03:00]} 6. O-O {[%clk 0:03:02]}  Nc6 {[%clk 0:03:01]} 7. Nc3 {[%clk 0:02:50]}  Be7 {[%clk 0:02:59]} 8. dxc5 {[%clk 0:02:45]}  Qxd1 {[%clk 0:02:56]} 9. Rxd1 {[%clk 0:02:46]}  Bxc5 {[%clk 0:02:56]} 10. Bd2 {[%clk 0:02:45]}  O-O {[%clk 0:02:54]} 11. Rac1 {[%clk 0:02:44]}  Rd8 {[%clk 0:02:45]} 12. Be1 {[%clk 0:02:07]}  Bd7 {[%clk 0:02:43]} 13. Nd2 {[%clk 0:02:05]}  Be8 {[%clk 0:02:40]} 14. Be2 {[%clk 0:02:02]}  Be7 {[%clk 0:02:33]} 15. Nde4 {[%clk 0:01:47]}  Rac8 {[%clk 0:02:17]} 16. f4 {[%clk 0:01:32]}  Nxe4 {[%clk 0:01:47]} 17. Nxe4 {[%clk 0:01:33]}  Nb4 {[%clk 0:01:20]} 18. Rxc8 {[%clk 0:00:32]}  Rxc8 {[%clk 0:01:19]} 19. a3 {[%clk 0:00:32]}  Nd5 {[%clk 0:01:18]} 20. Bd2 {[%clk 0:00:31]}  Bc6 {[%clk 0:01:17]} 21. Nc3 {[%clk 0:00:29]}  Nf6 {[%clk 0:01:01]} 22. Kf2 {[%clk 0:00:24]}  Kf8 {[%clk 0:00:59]} 23. g4 {[%clk 0:00:24]}  h6 {[%clk 0:00:58]} 24. Bf3 {[%clk 0:00:21]}  Ke8 {[%clk 0:00:52]} 25. Bxc6+ {[%clk 0:00:20]}  Rxc6 {[%clk 0:00:53]} 26. Kf3 {[%clk 0:00:20]}  Nd7 {[%clk 0:00:43]} 27. Be1 {[%clk 0:00:21]}  Nb6 {[%clk 0:00:39]} 28. Nb5 {[%clk 0:00:14]}  a6 {[%clk 0:00:20]} 29. Nd4 {[%clk 0:00:14]}  Rc8 {[%clk 0:00:19]} 30. h4 {[%clk 0:00:08]}  Nc4 {[%clk 0:00:18]} 31. Rc1 {[%clk 0:00:08]}  Ne5+ {[%clk 0:00:17]} 32. fxe5 {[%clk 0:00:05]}  Rxc1 {[%clk 0:00:18]} 33. Bf2 {[%clk 0:00:05]}  Rb1 {[%clk 0:00:17]} 34. b4 {[%clk 0:00:06]}  Ra1 {[%clk 0:00:15]} 35. b5 {[%clk 0:00:06]}  Rxa3 {[%clk 0:00:14]} 36. bxa6 {[%clk 0:00:07]}  bxa6 {[%clk 0:00:15]} 37. h5 {[%clk 0:00:07]}  Bc5 {[%clk 0:00:13]} 38. Nc6 {[%clk 0:00:07]}  a5 {[%clk 0:00:10]} 39. Ke4 {[%clk 0:00:06]}  Kd7 {[%clk 0:00:10]} 40. Nb8+ {[%clk 0:00:05]}  Kc8 {[%clk 0:00:08]} 41. Nc6 {[%clk 0:00:05]}  Kc7 {[%clk 0:00:07]} 42. Nd4 {[%clk 0:00:04]}  a4 {[%clk 0:00:05]} 43. Nb5+ {[%clk 0:00:04]}  Kc6 {[%clk 0:00:05]} 44. Nxa3 {[%clk 0:00:05]}  Bxa3 {[%clk 0:00:05]} 45. Kd4 {[%clk 0:00:04]}  Bb2+ {[%clk 0:00:05]} 46. Kc4 {[%clk 0:00:05]}  Bxe5 {[%clk 0:00:05]} 47. Kb4 {[%clk 0:00:05]}  Kd5 {[%clk 0:00:06]} 48. Kxa4 {[%clk 0:00:05]}  Ke4 {[%clk 0:00:07]} 49. Kb5 {[%clk 0:00:06]}  Kf3 {[%clk 0:00:07]} 50. Be1 {[%clk 0:00:07]}  Kxg4 {[%clk 0:00:07]} 51. Kc6 {[%clk 0:00:07]}  Kxh5 {[%clk 0:00:07]} 52. Kd7 {[%clk 0:00:08]}  Kg6 {[%clk 0:00:07]} 53. Ke8 {[%clk 0:00:09]}  h5 {[%clk 0:00:07]} 54. e4 {[%clk 0:00:10]}  Bf6 {[%clk 0:00:06]} 55. Kf8 {[%clk 0:00:10]}  h4 {[%clk 0:00:07]} 56. Bf2 {[%clk 0:00:10]}  h3 {[%clk 0:00:07]} 57. Bg1 {[%clk 0:00:11]}  Be5 {[%clk 0:00:08]} 58. Kg8 {[%clk 0:00:11]}  h2 {[%clk 0:00:08]} 59. Bxh2 {[%clk 0:00:11]}  Bxh2 {[%clk 0:00:09]} 60. e5 {[%clk 0:00:12]}  Bxe5 {[%clk 0:00:08]} 0-1


[Site "https://www.chess.com"]